Workbook

Sheet Planilha1
A1: Rótulos | B1: Ângulo | C1: x | D1: y
A2: I | B2: 60 | C2: =COS(B2*PI()/180) -> 0.50 | D2: =SIN(B2*PI()/180) -> 0.87
A3: II | B3: 30 | C3: =COS(B3*PI()/180) -> 0.87 | D3: =SIN(B3*PI()/180) -> 0.50
A4: III | B4: 0 | C4: 1.00 | D4: 0.00
A5: IV | B5: -30 | C5: 0.87 | D5: -0.50
A6: V | B6: -60 | C6: 0.50 | D6: -0.87
A7: VI | B7: -90 | C7: 0.00 | D7: -1.00
A8: VII | B8: -120 | C8: -0.50 | D8: -0.87
A9: VIII | B9: -150 | C9: -0.87 | D9: -0.50
A10: IX | B10: -180 | C10: -1.00 | D10: -0.00
A11: X | B11: -210 | C11: -0.87 | D11: 0.50
A12: XI | B12: -240 | C12: -0.50 | D12: 0.87
A13: XII | B13: -270 | C13: -0.00 | D13: 1.00
A15: Segundo | C15: 0.00 | D15: 0.00
A16: =SECOND(NOW()) -> 38.00 | B16: =90-A16/60*360 -> -138 | C16: =0.9*COS(B16*PI()/180) -> -0.67 | D16: =0.9*SIN(B16*PI()/180) -> -0.60
A17: Minuto | C17: 0.00 | D17: 0.00
A18: =MINUTE(NOW())+A16/60 -> 39.6 | B18: =90-A18/60*360 -> -147.8 | C18: =0.85*COS(B18*PI()/180) -> -0.72 | D18: =0.85*SIN(B18*PI()/180) -> -0.45
A19: Hora | C19: 0.00 | D19: 0.00
A20: =HOUR(NOW())+A18/60 -> 14.7 | B20: =90-A20/12*360 -> -349.8166667 | C20: =0.6*COS(B20*PI()/180) -> 0.59 | D20: =0.6*SIN(B20*PI()/180) -> 0.11
